bitfinex-derivatives/quotes_BTCF0:USTF0_20260221
["timestamp","ask_amount","ask_price","bid_price","bid_amount"]
[1771636612989,0.014729,67917.0,67910.0,0.014731]
[1771636613388,0.014729,67919.0,67914.0,0.01473]
[1771636613800,0.014729,67918.0,67913.0,0.01473]
[1771636613991,0.014728,67921.0,67913.0,0.01473]
[1771636614183,0.014729,67918.0,67913.0,0.01473]
[1771636615979,0.014728,67921.0,67911.0,0.014731]
[1771636615980,0.014729,67916.0,67911.0,0.014731]
[1771636616187,0.014729,67916.0,67908.0,0.014731]
[1771636616483,0.014729,67916.0,67912.0,0.01473]
[1771636619383,0.014729,67916.0,67911.0,0.01473]
[1771636619384,0.01473,67914.0,67910.0,0.014731]
[1771636619782,0.19887472,67924.0,67907.0,0.014731]
[1771636619989,0.014731,67910.0,67905.0,0.014732]
[1771636620192,0.014731,67910.0,67906.0,0.014732]
[1771636620791,0.014731,67911.0,67907.0,0.014731]
[1771636620992,0.014731,67910.0,67907.0,0.014731]
[1771636625896,0.01473,67913.0,67900.0,0.014733]
[1771636626092,0.014732,67906.0,67902.0,0.014732]
[1771636627089,0.014732,67906.0,67903.0,0.014732]
[1771636627292,0.014732,67906.0,67902.0,0.029464]
[1771636627490,0.014731,67908.0,67904.0,0.014732]
[1771636627689,0.014731,67910.0,67906.0,0.029462]
[1771636628090,0.014731,67910.0,67906.0,0.014731]
[1771636628390,0.014731,67910.0,67907.0,0.014731]
[1771636628797,0.014731,67911.0,67907.0,0.014731]
[1771636629095,0.014731,67910.0,67906.0,0.014732]
[1771636629295,0.24964339,67928.0,67906.0,0.26678558]
[1771636629497,0.014729,67919.0,67916.0,0.014729]
[1771636629799,0.029458,67920.0,67916.0,0.014729]
[1771636629987,0.014729,67920.0,67916.0,0.014729]
[1771636630897,0.014728,67921.0,67916.0,0.014729]
[1771636631497,0.029457,67921.0,67916.0,0.014729]
[1771636632395,0.014728,67921.0,67916.0,0.014729]
[1771636632588,0.014728,67923.0,67918.0,0.014729]
[1771636632789,0.014728,67922.0,67917.0,0.014729]
[1771636633902,0.26176381,67928.0,67919.0,0.014729]
[1771636634201,0.014728,67923.0,67918.0,0.014729]
[1771636634402,0.014728,67923.0,67918.0,0.029458]
[1771636634699,0.014728,67923.0,67918.0,0.014729]
[1771636635895,0.014728,67921.0,67916.0,0.014729]
[1771636636199,0.029457,67921.0,67916.0,0.014729]
[1771636637101,0.014728,67921.0,67916.0,0.014729]
[1771636637299,0.014728,67922.0,67917.0,0.014729]
[1771636637504,0.014728,67921.0,67916.0,0.014729]
[1771636637895,0.014728,67924.0,67916.0,0.014729]
[1771636638095,0.014728,67921.0,67917.0,0.014729]
[1771636639005,0.014728,67921.0,67916.0,0.014729]
[1771636640403,0.014728,67921.0,67916.0,0.029458]
[1771636641011,0.014728,67921.0,67916.0,0.014729]
[1771636642308,0.014728,67921.0,67917.0,0.014729]
[1771636642505,0.21247066,67920.0,67916.0,0.014729]
[1771636642709,0.21247066,67919.0,67916.0,0.014729]
[1771636642900,0.21247066,67918.0,67916.0,0.014729]
[1771636643102,0.21247066,67917.0,67916.0,0.014729]
[1771636645813,0.00627666,67920.0,67916.0,0.014729]
[1771636646906,0.014728,67921.0,67916.0,0.014729]
[1771636647105,0.014728,67921.0,67917.0,0.014729]
[1771636647505,0.014728,67921.0,67916.0,0.014729]
[1771636655216,0.014728,67923.0,67917.0,0.014729]
[1771636655716,0.014728,67922.0,67917.0,0.014729]
[1771636656718,0.014728,67923.0,67917.0,0.014729]
[1771636656918,0.014728,67922.0,67917.0,0.014729]
[1771636657519,0.014728,67924.0,67919.0,0.014729]
[1771636658618,0.014726,67934.0,67916.0,0.27150143]
[1771636658923,0.014726,67934.0,67926.0,0.014727]
[1771636658924,0.014726,67931.0,67926.0,0.014727]
[1771636659118,0.20566711,67930.0,67926.0,0.014727]
[1771636659425,0.20566711,67929.0,67925.0,0.014727]
[1771636659613,0.20566711,67929.0,67926.0,0.014727]
[1771636659813,0.014726,67931.0,67926.0,0.014727]
[1771636660621,0.014726,67930.0,67925.0,0.014727]
[1771636661319,0.014726,67930.0,67925.0,0.029454]
[1771636661517,0.014726,67934.0,67925.0,0.029454]
[1771636661712,0.014726,67931.0,67925.0,0.029454]
[1771636662324,0.014726,67931.0,67925.0,0.014727]
[1771636663320,0.014726,67930.0,67925.0,0.014727]
[1771636665518,0.014726,67932.0,67926.0,0.014727]
[1771636665828,0.014726,67931.0,67926.0,0.014727]
[1771636666022,0.014726,67933.0,67927.0,0.014727]
[1771636666411,0.014726,67932.0,67927.0,0.014727]
[1771636668531,0.014726,67931.0,67926.0,0.014727]
[1771636670017,0.014726,67931.0,67925.0,0.014727]
[1771636670218,0.014727,67928.0,67923.0,0.014728]
[1771636670923,0.014727,67929.0,67923.0,0.014728]
[1771636671134,0.014727,67930.0,67924.0,0.014728]
[1771636671325,0.014727,67929.0,67924.0,0.014728]
[1771636672728,0.014727,67929.0,67922.0,0.014728]
[1771636672729,0.014726,67931.0,67925.0,0.014727]
[1771636673130,0.014726,67930.0,67925.0,0.014727]
[1771636673831,0.014726,67931.0,67926.0,0.014727]
[1771636674321,0.014726,67930.0,67925.0,0.014727]
[1771636675824,0.014726,67931.0,67925.0,0.014727]
[1771636676727,0.014726,67930.0,67925.0,0.014727]
[1771636677429,0.029453,67930.0,67925.0,0.014727]
[1771636677931,0.029453,67930.0,67924.0,0.014728]
[1771636677932,0.014727,67929.0,67924.0,0.014728]
[1771636681738,0.014727,67928.0,67923.0,0.014728]
[1771636682733,0.014726,67930.0,67924.0,0.014728]
[1771636682935,0.029452,67931.0,67922.0,0.014728]
[1771636683526,0.014726,67930.0,67925.0,0.014727]
[1771636684236,0.014726,67930.0,67924.0,0.014728]
[1771636684435,0.014727,67929.0,67924.0,0.014728]
[1771636688136,0.014726,67930.0,67925.0,0.014727]
[1771636689543,0.029453,67930.0,67924.0,0.014728]
[1771636690139,0.014727,67929.0,67924.0,0.014728]
[1771636694547,0.014727,67929.0,67924.0,0.029456]
[1771636694749,0.014726,67930.0,67924.0,0.029456]
[1771636695047,0.014726,67930.0,67924.0,0.030296]
[1771636695249,0.029453,67930.0,67924.0,0.014728]
[1771636696750,0.014727,67929.0,67924.0,0.014728]
[1771636700850,0.014726,67931.0,67926.0,0.014727]
[1771636702048,0.014726,67931.0,67925.0,0.029454]
[1771636703052,0.014726,67931.0,67926.0,0.014727]
[1771636703356,0.014726,67932.0,67926.0,0.014727]
[1771636704452,0.014726,67931.0,67925.0,0.014727]
[1771636705451,0.014726,67930.0,67925.0,0.014727]
[1771636705652,0.014726,67931.0,67925.0,0.014727]
[1771636706553,0.029452,67931.0,67925.0,0.014727]
[1771636706754,0.014726,67931.0,67925.0,0.014727]
[1771636707054,0.014726,67931.0,67925.0,0.015567]
[1771636707252,0.014726,67931.0,67925.0,0.014727]
[1771636715460,0.014726,67932.0,67927.0,0.014727]
[1771636715652,0.014726,67933.0,67928.0,0.014727]
[1771636715852,0.014726,67933.0,67927.0,0.014727]
[1771636716460,0.014726,67932.0,67927.0,0.014727]
[1771636716859,0.014726,67934.0,67928.0,0.014727]
[1771636717060,0.014726,67933.0,67928.0,0.014727]
[1771636717448,0.014726,67932.0,67927.0,0.014727]
[1771636722759,0.20077927,67931.0,67927.0,0.014727]
[1771636722963,0.20077927,67930.0,67927.0,0.014727]
[1771636723164,0.20077927,67929.0,67927.0,0.014727]
[1771636723363,0.014726,67932.0,67927.0,0.014727]
[1771636723667,0.2007794,67931.0,67927.0,0.014727]
[1771636723860,0.2007794,67930.0,67927.0,0.014727]
[1771636724060,0.2007794,67929.0,67927.0,0.014727]
[1771636724359,0.014726,67932.0,67927.0,0.014727]
[1771636724560,0.20078163,67931.0,67927.0,0.014727]
[1771636724765,0.20078163,67930.0,67927.0,0.014727]
[1771636725064,0.20078163,67929.0,67927.0,0.014727]
[1771636725364,0.014726,67931.0,67927.0,0.014727]
[1771636725662,0.20079157,67930.0,67927.0,0.014727]
[1771636725871,0.014726,67931.0,67925.0,0.014727]
[1771636725872,0.20079157,67929.0,67926.0,0.014727]
[1771636726062,0.20079157,67928.0,67926.0,0.014727]
[1771636726263,0.014726,67930.0,67926.0,0.014727]
[1771636726465,0.2007986,67929.0,67926.0,0.014727]
[1771636726665,0.2007986,67928.0,67926.0,0.014727]
[1771636726867,0.014726,67930.0,67926.0,0.014727]
[1771636727066,0.20080254,67929.0,67926.0,0.014727]
[1771636727269,0.20080254,67928.0,67926.0,0.014727]
[1771636727566,0.014726,67930.0,67926.0,0.014727]
[1771636727768,0.20080791,67929.0,67926.0,0.014727]
[1771636727967,0.20080791,67928.0,67924.0,0.014728]
[1771636728168,0.20080791,67928.0,67925.0,0.014727]
[1771636732173,0.20080791,67928.0,67926.0,0.014727]
[1771636732974,0.014727,67929.0,67925.0,0.014727]
[1771636733171,0.014727,67929.0,67926.0,0.014727]
[1771636733871,0.014726,67930.0,67926.0,0.014727]
[1771636735076,0.014726,67931.0,67926.0,0.014727]
[1771636739382,0.014726,67932.0,67926.0,0.029454]
[1771636739582,0.014726,67932.0,67926.0,0.014727]
[1771636740690,0.014725,67937.0,67928.0,0.014727]
[1771636740895,0.014726,67933.0,67927.0,0.014727]
[1771636741183,0.014726,67933.0,67926.0,0.014727]
[1771636741486,0.014726,67932.0,67927.0,0.014727]
[1771636742479,0.014726,67933.0,67927.0,0.014727]
[1771636742684,0.029452,67933.0,67927.0,0.014727]
[1771636743685,0.014726,67933.0,67927.0,0.014727]
[1771636744994,0.014726,67932.0,67927.0,0.014727]
[1771636748497,0.014726,67933.0,67927.0,0.014727]
[1771636749592,0.014726,67933.0,67927.0,0.029454]
[1771636750292,0.014726,67933.0,67927.0,0.014727]
[1771636750794,0.014727,67930.0,67924.0,0.014728]
[1771636751093,0.014727,67930.0,67922.0,0.014728]
[1771636752087,0.014726,67931.0,67925.0,0.014727]
[1771636752288,0.014726,67931.0,67924.0,0.014728]
[1771636753597,0.014726,67931.0,67925.0,0.014727]
[1771636754993,0.014726,67930.0,67925.0,0.014727]
[1771636755196,0.014726,67930.0,67924.0,0.014728]
[1771636756097,0.014726,67930.0,67925.0,0.014727]
[1771636756301,0.014726,67930.0,67924.0,0.014728]
[1771636757398,0.014726,67930.0,67925.0,0.014727]
[1771636763091,0.014726,67930.0,67924.0,0.014728]
[1771636763413,0.014726,67930.0,67925.0,0.014727]
[1771636764100,0.014726,67931.0,67925.0,0.014727]
[1771636765002,0.014726,67930.0,67925.0,0.014727]
[1771636765698,0.014726,67930.0,67924.0,0.014728]
[1771636766203,0.014726,67930.0,67925.0,0.014727]
[1771636766604,0.014726,67931.0,67925.0,0.014727]
[1771636766795,0.014726,67930.0,67924.0,0.014728]
[1771636767506,0.014727,67929.0,67923.0,0.014728]
[1771636767702,0.014727,67929.0,67920.0,0.014728]
[1771636767904,0.014727,67929.0,67923.0,0.014728]
[1771636768203,0.014727,67929.0,67923.0,0.029456]
[1771636768403,0.014727,67929.0,67924.0,0.014728]
[1771636770406,0.014727,67929.0,67923.0,0.014728]
[1771636770601,0.014727,67929.0,67923.0,0.029456]
[1771636771107,0.014727,67929.0,67923.0,0.014728]
[1771636772504,0.014727,67928.0,67922.0,0.014728]
[1771636772800,0.22004536,67931.0,67919.0,0.26523464]
[1771636773003,0.22004536,67931.0,67900.0,0.99460994]
[1771636773004,0.01473,67916.0,67909.0,0.014731]
[1771636773205,0.01473,67913.0,67908.0,0.014731]
[1771636773407,0.01473,67912.0,67907.0,0.014731]
[1771636773703,0.01473,67913.0,67908.0,0.014731]
[1771636774701,0.01473,67913.0,67909.0,0.014731]
[1771636774900,0.01473,67914.0,67910.0,0.014731]
[1771636776198,0.01473,67915.0,67911.0,0.01473]
[1771636776507,0.014729,67916.0,67912.0,0.01473]
[1771636777408,0.014729,67917.0,67913.0,0.01473]
[1771636777600,0.014729,67917.0,67912.0,0.01473]
[1771636777800,0.014729,67916.0,67912.0,0.01473]
[1771636778010,0.01473,67915.0,67911.0,0.01473]
[1771636778203,0.014729,67918.0,67906.0,0.014731]
[1771636778506,0.014729,67918.0,67914.0,0.01473]
[1771636778708,0.014729,67917.0,67903.0,0.014732]
[1771636778910,0.01473,67915.0,67911.0,0.01473]
[1771636779111,0.01473,67914.0,67911.0,0.01473]
[1771636779311,0.01473,67915.0,67911.0,0.01473]
[1771636779513,0.01473,67915.0,67911.0,0.02946]
[1771636781614,0.014729,67916.0,67912.0,0.01473]
[1771636781815,0.029459,67916.0,67912.0,0.01473]
[1771636783613,0.014729,67916.0,67912.0,0.01473]
[1771636784914,0.18051867,67930.0,67903.0,0.16166178]
[1771636785112,0.014728,67923.0,67919.0,0.029458]
[1771636785414,0.014728,67924.0,67920.0,0.014729]
[1771636785612,0.26086433,67935.0,67922.0,0.014728]
[1771636785808,0.26086433,67935.0,67920.0,0.014729]
[1771636785809,0.014727,67926.0,67921.0,0.014728]
[1771636787114,0.014727,67926.0,67920.0,0.014729]
[1771636787317,0.014728,67925.0,67919.0,0.014729]
[1771636787512,0.014728,67925.0,67920.0,0.014729]
[1771636787814,0.014728,67925.0,67919.0,0.014729]
[1771636788217,0.014729,67919.0,67913.0,0.01473]
[1771636788405,0.014729,67920.0,67915.0,0.01473]
[1771636789519,0.014729,67919.0,67914.0,0.01473]
[1771636789814,0.014729,67920.0,67915.0,0.01473]
[1771636791516,0.014729,67919.0,67914.0,0.01473]
[1771636791717,0.014729,67919.0,67915.0,0.01473]
[1771636791919,0.014729,67920.0,67915.0,0.01473]
[1771636794016,0.014729,67918.0,67914.0,0.01473]
[1771636794205,0.029458,67920.0,67914.0,0.01473]
[1771636794407,0.014729,67919.0,67911.0,0.01473]
[1771636794615,0.014729,67919.0,67915.0,0.01473]
[1771636795213,0.014729,67918.0,67914.0,0.02946]
[1771636795407,0.014729,67918.0,67915.0,0.01473]
[1771636795608,0.014729,67919.0,67915.0,0.01473]
[1771636799311,0.014729,67917.0,67913.0,0.01473]
[1771636799616,0.014729,67918.0,67914.0,0.01473]
[1771636800119,0.014729,67918.0,67915.0,0.01473]
[1771636801023,0.014729,67919.0,67915.0,0.01473]
[1771636801521,0.014729,67918.0,67914.0,0.01473]
[1771636801821,0.014729,67917.0,67914.0,0.01473]
[1771636802524,0.014729,67918.0,67915.0,0.01473]
[1771636803120,0.014729,67918.0,67914.0,0.01473]
[1771636804524,0.014729,67918.0,67915.0,0.01473]
[1771636806829,0.014729,67919.0,67915.0,0.01473]
[1771636808718,0.029458,67919.0,67915.0,0.01473]
[1771636808918,0.014729,67917.0,67913.0,0.01473]
[1771636809423,0.014729,67917.0,67911.0,0.01473]
[1771636809424,0.014729,67918.0,67911.0,0.01473]
[1771636809721,0.014729,67918.0,67914.0,0.01473]
[1771636809922,0.014729,67918.0,67911.0,0.01473]
[1771636809923,0.01473,67914.0,67895.0,0.16812605]
[1771636810122,0.014729,67918.0,67914.0,0.01473]
[1771636812828,0.25792358,67917.0,67914.0,0.01473]
[1771636813125,0.25792358,67916.0,67914.0,0.01473]
[1771636813326,0.25792358,67915.0,67914.0,0.01473]
[1771636815122,0.014728,67924.0,67906.0,0.15342161]
[1771636815324,0.014728,67924.0,67910.0,0.18051867]
[1771636816229,0.014728,67923.0,67920.0,0.014728]
[1771636816428,0.014728,67923.0,67916.0,0.014729]
[1771636816628,0.014728,67923.0,67918.0,0.014729]
[1771636816828,0.014728,67923.0,67918.0,0.029458]
[1771636817030,0.014728,67923.0,67919.0,0.014729]
[1771636817832,0.014728,67924.0,67919.0,0.014729]
[1771636818132,0.014728,67923.0,67918.0,0.014729]
[1771636818930,0.014728,67923.0,67918.0,0.029458]
[1771636819433,0.014728,67923.0,67918.0,0.014729]
[1771636820433,0.014728,67924.0,67918.0,0.014729]
[1771636820828,0.014728,67924.0,67919.0,0.014729]
[1771636822831,0.014726,67931.0,67912.0,0.01473]
[1771636823032,0.014727,67927.0,67922.0,0.014728]
[1771636823437,0.014727,67929.0,67923.0,0.014728]
[1771636823633,0.014727,67928.0,67923.0,0.014728]
[1771636824336,0.014726,67933.0,67914.0,0.16651182]
[1771636824544,0.014726,67933.0,67924.0,0.014728]
[1771636824545,0.014726,67930.0,67924.0,0.014728]
[1771636825141,0.014727,67929.0,67924.0,0.014728]
[1771636825443,0.014726,67930.0,67924.0,0.014728]
[1771636825642,0.014727,67929.0,67924.0,0.014728]
[1771636825944,0.014727,67927.0,67921.0,0.014728]
[1771636826239,0.014727,67927.0,67922.0,0.014728]
[1771636826443,0.014727,67928.0,67923.0,0.014728]
[1771636826937,0.014727,67929.0,67919.0,0.014729]
[1771636827140,0.014728,67925.0,67920.0,0.014728]
[1771636827338,0.24412537,67924.0,67920.0,0.014728]
[1771636827532,0.014728,67922.0,67910.0,0.014731]
[1771636827732,0.014728,67922.0,67916.0,0.014729]
[1771636829440,0.014728,67922.0,67917.0,0.014729]
[1771636830040,0.014728,67923.0,67918.0,0.014729]
[1771636831039,0.014728,67924.0,67918.0,0.014729]
[1771636831234,0.014727,67926.0,67920.0,0.014729]
[1771636831538,0.014728,67924.0,67919.0,0.014729]
[1771636831732,0.24409931,67923.0,67919.0,0.014729]
[1771636831938,0.014728,67924.0,67919.0,0.014729]
[1771636832136,0.24409942,67923.0,67919.0,0.014729]
[1771636832336,0.014728,67924.0,67919.0,0.014729]
[1771636832533,0.014725,67935.0,67926.0,0.014727]
[1771636832734,0.014725,67938.0,67925.0,0.014727]
[1771636832942,0.029452,67931.0,67925.0,0.014727]
[1771636833240,0.014726,67930.0,67925.0,0.014727]
[1771636833827,0.014726,67930.0,67925.0,0.015727]
[1771636834038,0.014726,67930.0,67925.0,0.001]
[1771636834338,0.014726,67930.0,67924.0,0.014728]
[1771636835241,0.014726,67930.0,67925.0,0.014727]
[1771636835841,0.014726,67930.0,67924.0,0.014728]
[1771636836036,0.014726,67930.0,67924.0,0.015568]
[1771636836342,0.014726,67930.0,67924.0,0.014728]
[1771636836735,0.014727,67929.0,67924.0,0.014728]
[1771636841850,0.014726,67932.0,67925.0,0.014727]
[1771636842049,0.014727,67930.0,67924.0,0.014728]
[1771636843958,0.014728,67924.0,67919.0,0.014729]
[1771636844154,0.014728,67924.0,67918.0,0.014729]
[1771636844350,0.014728,67923.0,67918.0,0.014729]
[1771636844546,0.014728,67922.0,67917.0,0.014729]
[1771636845455,0.014728,67921.0,67917.0,0.014729]
[1771636847145,0.014729,67920.0,67915.0,0.01473]
[1771636847455,0.014729,67920.0,67916.0,0.014729]
[1771636847757,0.014728,67921.0,67917.0,0.014729]
[1771636849347,0.014729,67919.0,67913.0,0.01473]
[1771636849552,0.014729,67918.0,67914.0,0.01473]
[1771636849855,0.014729,67920.0,67916.0,0.014729]
[1771636853656,0.014729,67920.0,67916.0,0.029458]
[1771636854051,0.014728,67924.0,67920.0,0.014729]
[1771636854255,0.014727,67926.0,67922.0,0.014728]
[1771636854449,0.014728,67925.0,67921.0,0.014728]
[1771636855149,0.029456,67925.0,67921.0,0.014728]
[1771636855554,0.014728,67924.0,67921.0,0.014728]
[1771636858059,0.014728,67925.0,67921.0,0.014728]
[1771636858358,0.029456,67925.0,67921.0,0.014728]
[1771636858659,0.014728,67924.0,67921.0,0.014728]
[1771636862567,0.014728,67925.0,67921.0,0.014728]
[1771636862771,0.014727,67928.0,67921.0,0.014728]
[1771636863163,0.014728,67925.0,67921.0,0.014728]
[1771636863364,0.014727,67928.0,67921.0,0.014728]
[1771636863663,0.014728,67925.0,67921.0,0.014728]
[1771636865673,0.014728,67925.0,67918.0,0.014729]
[1771636865973,0.014728,67925.0,67921.0,0.014728]
[1771636866373,0.014728,67925.0,67921.0,0.029456]
[1771636866568,0.014728,67925.0,67921.0,0.014728]
[1771636866975,0.014726,67933.0,67922.0,0.014728]
[1771636867174,0.014728,67925.0,67922.0,0.014728]
[1771636867974,0.014727,67929.0,67925.0,0.014727]
[1771636868278,0.014726,67931.0,67926.0,0.014727]
[1771636868482,0.029452,67931.0,67927.0,0.014727]
[1771636868683,0.014726,67930.0,67926.0,0.014727]
[1771636874396,0.014726,67930.0,67925.0,0.014727]
[1771636874597,0.014726,67930.0,67926.0,0.014727]
[1771636876597,0.014726,67931.0,67926.0,0.014727]
[1771636876799,0.22710683,67930.0,67926.0,0.014727]
[1771636877093,0.014726,67931.0,67926.0,0.014727]
[1771636877295,0.22710512,67930.0,67926.0,0.014727]
[1771636877497,0.014726,67931.0,67926.0,0.014727]
[1771636877704,0.22710512,67930.0,67926.0,0.014727]
[1771636877893,0.014726,67931.0,67926.0,0.014727]
[1771636878095,0.22710531,67930.0,67926.0,0.014727]
[1771636878403,0.22710531,67929.0,67924.0,0.014728]
[1771636878601,0.014726,67931.0,67926.0,0.014727]
[1771636878801,0.22710396,67930.0,67926.0,0.014727]
[1771636878997,0.22710396,67929.0,67926.0,0.014727]
[1771636879199,0.014726,67931.0,67926.0,0.014727]
[1771636879395,0.22710271,67930.0,67926.0,0.014727]
[1771636879595,0.22710271,67929.0,67926.0,0.014727]
[1771636879791,0.014726,67931.0,67926.0,0.014727]
[1771636879996,0.22710284,67930.0,67926.0,0.014727]
[1771636880197,0.22710284,67929.0,67924.0,0.014728]
[1771636880406,0.014726,67931.0,67925.0,0.014727]
[1771636880596,0.22710597,67930.0,67925.0,0.014727]
[1771636880797,0.22710597,67929.0,67925.0,0.014727]
[1771636881101,0.014726,67931.0,67925.0,0.014727]
[1771636881296,0.22549122,67930.0,67925.0,0.014727]
[1771636881496,0.22549122,67929.0,67925.0,0.014727]
[1771636881697,0.014727,67928.0,67923.0,0.029456]
[1771636882002,0.014727,67928.0,67923.0,0.014728]
[1771636889908,0.014727,67927.0,67923.0,0.014728]
[1771636891207,0.014727,67927.0,67922.0,0.014728]
[1771636892807,0.014727,67930.0,67917.0,0.014729]
[1771636893010,0.22546843,67929.0,67917.0,0.014729]
[1771636893308,0.014727,67929.0,67924.0,0.014728]
[1771636896208,0.014727,67928.0,67923.0,0.014728]
[1771636896398,0.014727,67928.0,67923.0,0.029456]
[1771636897213,0.014727,67929.0,67924.0,0.014728]
[1771636901612,0.014727,67929.0,67924.0,0.029456]
[1771636902110,0.014727,67929.0,67924.0,0.014728]
[1771636902913,0.22549603,67928.0,67924.0,0.014728]
[1771636903104,0.22549603,67927.0,67924.0,0.014728]
[1771636903305,0.22549603,67926.0,67924.0,0.014728]
[1771636903611,0.22549603,67925.0,67924.0,0.014728]
[1771636904808,0.22549603,67925.0,67923.0,0.014728]
[1771636905009,0.014727,67928.0,67924.0,0.014728]
[1771636905198,0.22549485,67927.0,67924.0,0.014728]
[1771636905401,0.22549485,67926.0,67924.0,0.014728]
[1771636905609,0.22549485,67925.0,67924.0,0.014728]
[1771636905908,0.22549485,67927.0,67924.0,0.014728]
[1771636906112,0.22549485,67926.0,67925.0,0.014728]
[1771636910513,0.22549485,67926.0,67924.0,0.014728]
[1771636910514,0.014726,67930.0,67927.0,0.014727]
[1771636910905,0.014726,67930.0,67926.0,0.014727]
[1771636911214,0.014726,67931.0,67926.0,0.014727]
[1771636912212,0.014726,67932.0,67926.0,0.014727]
[1771636912413,0.029452,67932.0,67927.0,0.014727]
[1771636912613,0.014726,67931.0,67927.0,0.014727]
[1771636913916,0.014726,67931.0,67926.0,0.014727]
[1771636914112,0.014726,67931.0,67926.0,0.029454]
[1771636914416,0.014726,67931.0,67926.0,0.014727]
[1771636915615,0.014727,67928.0,67923.0,0.014728]
[1771636915815,0.014727,67929.0,67924.0,0.014728]
[1771636917304,0.014727,67928.0,67923.0,0.014728]
[1771636918718,0.014727,67928.0,67923.0,0.029456]
[1771636919013,0.014727,67926.0,67917.0,0.014729]
[1771636919214,0.014728,67924.0,67918.0,0.014729]
[1771636919517,0.014728,67923.0,67918.0,0.014729]
[1771636919817,0.014728,67922.0,67918.0,0.014729]
[1771636920422,0.014728,67921.0,67918.0,0.014729]
[1771636920625,0.014728,67922.0,67918.0,0.014729]
[1771636922018,0.014728,67922.0,67919.0,0.014729]
[1771636922420,0.014728,67924.0,67920.0,0.014728]
[1771636926623,0.029456,67924.0,67920.0,0.014728]
[1771636926823,0.014728,67923.0,67920.0,0.014728]
[1771636927009,0.014728,67922.0,67917.0,0.014729]
[1771636927215,0.014728,67921.0,67918.0,0.014729]
[1771636927821,0.014728,67922.0,67918.0,0.014729]
[1771636929524,0.014728,67922.0,67919.0,0.014729]
[1771636934724,0.014728,67922.0,67918.0,0.014729]
[1771636934923,0.014728,67922.0,67919.0,0.014729]
[1771636936527,0.014728,67923.0,67919.0,0.014729]
[1771636936929,0.014728,67923.0,67919.0,0.029458]
[1771636937132,0.014728,67923.0,67920.0,0.014728]
[1771636938025,0.014728,67924.0,67921.0,0.014728]
[1771636940232,0.014728,67925.0,67921.0,0.014728]
[1771636941527,0.014728,67924.0,67921.0,0.014728]
[1771636942131,0.014728,67924.0,67920.0,0.014728]
[1771636942332,0.014728,67924.0,67920.0,0.029456]
[1771636943036,0.014728,67924.0,67921.0,0.014728]
[1771636944028,0.014728,67925.0,67922.0,0.014728]
[1771636944538,0.014727,67926.0,67922.0,0.014728]
[1771636944735,0.014727,67926.0,67923.0,0.014728]
[1771636945136,0.014727,67927.0,67923.0,0.014728]
[1771636948524,0.014727,67928.0,67924.0,0.014728]
[1771636948927,0.014725,67938.0,67930.0,0.014726]
[1771636949130,0.014726,67934.0,67930.0,0.014726]
[1771636949329,0.014726,67934.0,67929.0,0.014727]
[1771636949532,0.014725,67936.0,67924.0,0.014728]
[1771636949735,0.014727,67929.0,67925.0,0.014727]
[1771636950236,0.014727,67929.0,67924.0,0.014728]
[1771636950237,0.029452,67933.0,67928.0,0.014727]
[1771636950637,0.014726,67933.0,67929.0,0.014727]
[1771636951339,0.014726,67933.0,67928.0,0.014727]
[1771636953035,0.21638546,67932.0,67928.0,0.014727]
[1771636953239,0.21638546,67931.0,67928.0,0.014727]
[1771636953443,0.21638546,67930.0,67928.0,0.014727]
[1771636953639,0.21638546,67929.0,67928.0,0.014727]
[1771636954141,0.014726,67933.0,67928.0,0.014727]
[1771636954338,0.21635142,67932.0,67928.0,0.014727]
[1771636954538,0.21635142,67931.0,67928.0,0.014727]
[1771636954745,0.21635142,67930.0,67928.0,0.014727]
[1771636954942,0.014726,67933.0,67928.0,0.014727]
[1771636955136,0.21635142,67932.0,67928.0,0.014727]
[1771636955337,0.21635142,67931.0,67928.0,0.014727]
[1771636955537,0.21635142,67930.0,67928.0,0.014727]
[1771636955738,0.014726,67932.0,67928.0,0.014727]
[1771636955941,0.21633784,67931.0,67928.0,0.014727]
[1771636956141,0.20160784,67930.0,67928.0,0.014727]
[1771636956340,0.014726,67932.0,67928.0,0.014727]
[1771636959649,0.014726,67932.0,67927.0,0.014727]
[1771636961151,0.014727,67929.0,67925.0,0.014727]
[1771636963759,0.014727,67927.0,67923.0,0.014728]
[1771636965153,0.014727,67928.0,67924.0,0.014728]
[1771636965654,0.014727,67928.0,67925.0,0.014727]
[1771636965857,0.014727,67928.0,67924.0,0.014728]
[1771636966054,0.014727,67928.0,67924.0,0.029456]
[1771636966369,0.014727,67928.0,67924.0,0.014728]
[1771636967759,0.029454,67928.0,67924.0,0.014728]
[1771636967958,0.014727,67928.0,67924.0,0.014728]
[1771636968660,0.014727,67926.0,67915.0,0.01473]
[1771636968856,0.014728,67924.0,67921.0,0.014728]
[1771636969254,0.014728,67924.0,67918.0,0.014729]
[1771636969459,0.014728,67922.0,67918.0,0.014729]
[1771636969873,0.014728,67922.0,67919.0,0.014729]
[1771636970273,0.014728,67923.0,67920.0,0.014729]
[1771636973675,0.014728,67924.0,67920.0,0.014729]
[1771636973878,0.014728,67924.0,67916.0,0.014729]
[1771636974182,0.014728,67924.0,67920.0,0.014728]
[1771636974576,0.014728,67923.0,67920.0,0.014728]
[1771636975582,0.014728,67923.0,67919.0,0.014729]
[1771636975776,0.014728,67923.0,67920.0,0.014729]
[1771636975973,0.01473,67916.0,67909.0,0.014731]
[1771636976176,0.01473,67915.0,67909.0,0.014731]
[1771636976572,0.01473,67913.0,67908.0,0.014731]